[Event "17th Delhi GM Open 2019"]
[Site "Delhi"]
[Date "2019.01.09"]
[Round "1"]
[White "Erigaisi Arjun"]
[Black "Vijay, Kumar"]
[Result "1-0"]
[ECO "E73"]
[WhiteElo "2548"]
[BlackElo "1943"]
[Annotator "ChessBase"]
[PlyCount "61"]
[EventDate "2019.01.09"]
[EventType "swiss"]
[EventCountry "IND"]
[SourceTitle "playchess.com"]
[Source "ChessBase"]
[SourceQuality "1"]
[TimeControl "5400+30"]

1. d4 {[%emt 0:00:16]} Nf6 {[%emt 0:00:00]} 2. c4 {[%emt 0:00:09]} g6 {[%emt 0:00:00]} 3. Nc3 {[%emt 0:00:08]} Bg7 {[%emt 0:00:11]} 4. e4 {[%emt 0:00:07]} d6 {[%emt 0:00:07]} 5. Be2 {[%emt 0:00:06]} e5 {[%emt 0:06:10]} 6. d5 {[%emt 0:01:28]} Nbd7 {[%emt 0:04:00]} 7. h4 {[%emt 0:02:09]} Nc5 {[%emt 0:05:48]} 8. Bf3 {[%emt 0:00:11]} a5 {[%emt 0:01:16]} 9. h5 {[%emt 0:00:24]} h6 {[%emt 0:05:12]} 10. hxg6 {[%emt 0:00:23]} fxg6 {[%emt 0:00:19]} 11. Be3 {[%emt 0:00:30]} b6 {[%emt 0:05:17]} 12. Rb1 {[%emt 0:03:17]} Bd7 {[%emt 0:03:10]} 13. b3 {[%emt 0:01:12]} Qc8 {[%emt 0:06:30]} 14. a3 {[%emt 0:01:52]} Qa6 {[%emt 0:06:00]} 15. Nge2 {[%emt 0:02:39]} a4 {[%emt 0:06:00]} 16. b4 {[%emt 0:00:50]} Nb3 {[%emt 0:00:48]} 17. Qd3 {[%emt 0:00:13]} Ng4 {[%emt 0:08:29]} 18. Bxg4 {[%emt 0:01:58]} Bxg4 {[%emt 0:00:10]} 19. Nb5 {[%emt 0:00:09]} Bxe2 {[%emt 0:12:53]} 20. Qxe2 {[%emt 0:00:11]} Qc8 {[%emt 0:00:39]} 21. Bxb6 {[%emt 0:00:12]} Rb8 {[%emt 0:12:28]} 22. Nxc7+ {[%emt 0:02:42]} Kf7 {[%emt 0:00:44]} 23. Qe3 {[%emt 0:03:12]} Nd4 {[%emt 0:02:02]} 24. Bxd4 {[%emt 0:00:11]} Qxc7 {[%emt 0:00:49]} 25. Bb2 {[%emt 0:00:21]} Qxc4 {[%emt 0:02:15]} 26. Rc1 {[%emt 0:00:22]} Qa2 {[%emt 0:00:47]} 27. Rc7+ {[%emt 0:00:11]} Kg8 {[%emt 0:00:11]} 28. O-O {[%emt 0:00:46]} Kh7 {[%emt 0:03:09]} 29. Qc3 {[%emt 0:00:26]} Rhf8 {[%emt 0:03:26]} 30. Ra1 {[%emt 0:01:35]} Qb3 {[%emt 0:01:01]} 31. Qxb3 {[%emt 0:00:09]} 1-0

[Event "17th Delhi GM Open 2019"]
[Site "Delhi"]
[Date "2019.01.09"]
[Round "1"]
[White "Ghaem Maghami, Ehsan"]
[Black "Debankan, Dhara"]
[Result "1-0"]
[ECO "E09"]
[WhiteElo "2533"]
[BlackElo "1934"]
[Annotator "ChessBase"]
[PlyCount "73"]
[EventDate "2019.01.09"]
[EventType "swiss"]
[EventCountry "IND"]
[SourceTitle "playchess.com"]
[Source "ChessBase"]
[SourceQuality "1"]
[TimeControl "5400+30"]

1. c4 {[%emt 0:00:00]} e6 {[%emt 0:00:00]} 2. Nf3 {[%emt 0:00:00]} d5 {[%emt 0:00:00]} 3. d4 {[%emt 0:00:48]} Nf6 {[%emt 0:00:23]} 4. g3 {[%emt 0:00:41]} Be7 {[%emt 0:00:37]} 5. Bg2 {[%emt 0:00:10]} O-O {[%emt 0:00:12]} 6. O-O {[%emt 0:00:10]} c6 {[%emt 0:03:07]} 7. Qc2 {[%emt 0:08:31]} Nbd7 {[%emt 0:00:47]} 8. Nbd2 {[%emt 0:00:35]} b6 {[%emt 0:00:39]} 9. e4 {[%emt 0:00:05]} dxe4 {[%emt 0:00:06]} 10. Nxe4 {[%emt 0:00:06]} Nxe4 {[%emt 0:00:14]} 11. Qxe4 {[%emt 0:00:08]} Bb7 {[%emt 0:00:12]} 12. Rd1 {[%emt 0:00:29]} Bf6 {[%emt 0:09:31]} 13. Bf4 {[%emt 0:14:50]} Qe7 {[%emt 0:05:24]} 14. Re1 {[%emt 0:08:23]} Rfd8 {[%emt 0:06:58]} 15. Rad1 {[%emt 0:02:03]} Rac8 {[%emt 0:03:12]} 16. h4 {[%emt 0:00:42]} Nf8 {[%emt 0:08:15]} 17. Qc2 {[%emt 0:01:24]} Ng6 {[%emt 0:06:18]} 18. Bg5 {[%emt 0:06:52]} h6 {[%emt 0:05:48]} 19. Bxf6 {[%emt 0:04:11]} Qxf6 {[%emt 0:00:33]} 20. c5 {[%emt 0:01:58]} Ne7 {[%emt 0:01:57]} 21. Qa4 {[%emt 0:03:35]} Ra8 {[%emt 0:02:47]} 22. Ne5 {[%emt 0:00:48]} Rdc8 {[%emt 0:09:23]} 23. Qb3 {[%emt 0:10:48]} b5 {[%emt 0:02:16]} 24. Be4 {[%emt 0:10:32]} g6 {[%emt 0:12:47]} 25. a4 {[%emt 0:05:56]} a6 {[%emt 0:01:03]} 26. Nd7 {[%emt 0:00:16]} Qg7 {[%emt 0:00:40]} 27. Nb6 {[%emt 0:00:05]} Rab8 {[%emt 0:00:29]} 28. Nxc8 {[%emt 0:00:18]} Bxc8 {[%emt 0:00:07]} 29. axb5 {[%emt 0:00:43]} Rxb5 {[%emt 0:00:10]} 30. Qc3 {[%emt 0:01:21]} Qf8 {[%emt 0:01:54]} 31. Ra1 {[%emt 0:00:16]} Qd8 {[%emt 0:00:18]} 32. Ra4 {[%emt 0:00:11]} Nd5 {[%emt 0:01:04]} 33. Bxd5 {[%emt 0:02:03]} Qxd5 {[%emt 0:00:11]} 34. Rb4 {[%emt 0:02:14]} Bb7 {[%emt 0:03:22]} 35. Rc1 {[%emt 0:00:11]} Kg7 {[%emt 0:00:13]} 36. Rxb5 {[%emt 0:00:16]} axb5 {[%emt 0:00:06]} 37. Qe3 {[%emt 0:01:23]} 1-0

[Event "17th Delhi GM Open 2019"]
[Site "Delhi"]
[Date "2019.01.09"]
[Round "1"]
[White "Visakh N R"]
[Black "Abid Ali Mujawar"]
[Result "1-0"]
[ECO "B51"]
[WhiteElo "2486"]
[BlackElo "1926"]
[Annotator "ChessBase"]
[PlyCount "73"]
[EventDate "2019.01.09"]
[EventType "swiss"]
[EventCountry "IND"]
[SourceTitle "playchess.com"]
[Source "ChessBase"]
[SourceQuality "1"]
[TimeControl "5400+30"]

1. e4 {[%emt 0:00:00]} c5 {[%emt 0:00:02]} 2. Nf3 {[%emt 0:00:00]} d6 {[%emt 0:00:20]} 3. Bb5+ {[%emt 0:05:19]} Nc6 {[%emt 0:00:38]} 4. O-O {[%emt 0:01:32]} Nf6 {[%emt 0:02:57]} 5. Re1 {[%emt 0:00:10]} Bd7 {[%emt 0:02:23]} 6. c3 {[%emt 0:03:03]} e6 {[%emt 0:04:20]} 7. d4 {[%emt 0:01:49]} cxd4 {[%emt 0:01:17]} 8. cxd4 {[%emt 0:00:02]} a6 {[%emt 0:01:27]} 9. Bxc6 {[%emt 0:04:41]} bxc6 {[%emt 0:02:25]} 10. e5 {[%emt 0:00:23]} Nd5 {[%emt 0:00:44]} 11. Nbd2 {[%emt 0:00:42]} Qc7 {[%emt 0:11:34]} 12. Nc4 {[%emt 0:03:52]} dxe5 {[%emt 0:08:04]} 13. dxe5 {[%emt 0:01:23]} Bc5 {[%emt 0:02:21]} 14. Ng5 {[%emt 0:00:50]} O-O {[%emt 0:03:45]} 15. Qd3 {[%emt 0:05:30]} f5 {[%emt 0:02:03]} 16. exf6 {[%emt 0:07:21]} Nxf6 {[%emt 0:02:02]} 17. Be3 {[%emt 0:00:05]} Bb4 {[%emt 0:03:59]} 18. Red1 {[%emt 0:08:10]} h6 {[%emt 0:02:59]} 19. Ne4 {[%emt 0:05:52]} Nd5 {[%emt 0:01:34]} 20. Bd4 {[%emt 0:01:13]} Rae8 {[%emt 0:05:20]} 21. Be5 {[%emt 0:00:35]} Qa7 {[%emt 0:01:38]} 22. Qg3 {[%emt 0:00:20]} Re7 {[%emt 0:01:58]} 23. a3 {[%emt 0:00:27]} Bc5 {[%emt 0:02:06]} 24. b4 {[%emt 0:00:13]} Bxf2+ {[%emt 0:03:45]} 25. Nxf2 {[%emt 0:00:51]} Ref7 {[%emt 0:01:30]} 26. Bd4 {[%emt 0:00:13]} Qa8 {[%emt 0:00:41]} 27. Ng4 {[%emt 0:00:27]} Nf4 {[%emt 0:00:44]} 28. Kh1 {[%emt 0:00:14]} c5 {[%emt 0:02:07]} 29. Nxh6+ {[%emt 0:01:49]} Kh7 {[%emt 0:00:29]} 30. Nxf7 {[%emt 0:00:09]} Rxf7 {[%emt 0:00:13]} 31. Ne5 {[%emt 0:02:16]} cxd4 {[%emt 0:00:58]} 32. Nxf7 {[%emt 0:00:07]} Nxg2 {[%emt 0:00:21]} 33. Ng5+ {[%emt 0:00:08]} Kg8 {[%emt 0:00:08]} 34. Qf3 {[%emt 0:00:42]} Bc6 {[%emt 0:00:33]} 35. Qf7+ {[%emt 0:00:05]} Kh8 {[%emt 0:00:04]} 36. Qh5+ {[%emt 0:00:06]} Kg8 {[%emt 0:00:09]} 37. Qh7+ {[%emt 0:00:00] Bd7 [%clk 0:29:38] Qg6 [%clk 0:47:21] Bc6 [%clk 0:30:22] Qh7+} 1-0

[Event "17th Delhi GM Open 2019"]
[Site "Delhi"]
[Date "2019.01.09"]
[Round "1"]
[White "Harsha Bharathakoti"]
[Black "Ilamparthi A R"]
[Result "0-1"]
[ECO "A45"]
[WhiteElo "2481"]
[BlackElo "1920"]
[Annotator "ChessBase"]
[PlyCount "86"]
[EventDate "2019.01.09"]
[EventType "swiss"]
[EventCountry "IND"]
[SourceTitle "playchess.com"]
[Source "ChessBase"]
[SourceQuality "1"]
[TimeControl "5400+30"]

1. d4 {[%emt 0:00:00]} Nf6 {[%emt 0:00:00]} 2. Bg5 {[%emt 0:00:30]} g6 {[%emt 0:01:18]} 3. Bxf6 {[%emt 0:00:08]} exf6 {[%emt 0:00:05]} 4. e3 {[%emt 0:00:05]} Bg7 {[%emt 0:00:06]} 5. g3 {[%emt 0:00:58]} O-O {[%emt 0:00:25]} 6. Bg2 {[%emt 0:00:15]} d5 {[%emt 0:01:12]} 7. Ne2 {[%emt 0:00:24]} c6 {[%emt 0:00:32]} 8. Nd2 {[%emt 0:01:42]} Be6 {[%emt 0:03:09]} 9. O-O {[%emt 0:02:27]} Nd7 {[%emt 0:03:41]} 10. Nf4 {[%emt 0:08:50]} f5 {[%emt 0:05:38]} 11. Rc1 {[%emt 0:03:14]} Nf6 {[%emt 0:02:19]} 12. c4 {[%emt 0:02:23]} Ne4 {[%emt 0:08:35]} 13. cxd5 {[%emt 0:05:21]} cxd5 {[%emt 0:01:28]} 14. Nb3 {[%emt 0:04:20]} b6 {[%emt 0:03:50]} 15. Qe2 {[%emt 0:10:42]} Rc8 {[%emt 0:04:41]} 16. Qb5 {[%emt 0:13:06]} Qd6 {[%emt 0:14:10]} 17. Qa6 {[%emt 0:03:31]} Qd7 {[%emt 0:06:23]} 18. Rfe1 {[%emt 0:04:11]} Bh6 {[%emt 0:15:23]} 19. Rf1 {[%emt 0:00:00]} Bg7 {[%emt 0:00:00]} 20. Rfe1 {[%emt 0:01:00]} Bh6 21. Nd3 {[%emt 0:06:31]} Bg7 {[%emt 0:04:58]} 22. Na1 {[%emt 0:16:42]} Rc4 {[%emt 0:06:35]} 23. Rxc4 {[%emt 0:06:14]} dxc4 {[%emt 0:00:08]} 24. Nf4 {[%emt 0:00:03]} c3 {[%emt 0:01:43]} 25. Nxe6 {[%emt 0:03:35]} fxe6 {[%emt 0:00:38]} 26. bxc3 {[%emt 0:01:29]} Nxc3 {[%emt 0:00:06]} 27. Rc1 {[%emt 0:00:49]} Rc8 {[%emt 0:03:15]} 28. Nb3 {[%emt 0:01:03]} e5 {[%emt 0:01:15]} 29. dxe5 {[%emt 0:04:13]} Bxe5 {[%emt 0:00:38]} 30. Bf3 {[%emt 0:00:18]} Kg7 {[%emt 0:02:26]} 31. Kg2 {[%emt 0:00:03]} g5 {[%emt 0:01:53]} 32. Kh1 {[%emt 0:01:09]} Rd8 {[%emt 0:01:55]} 33. Nd4 {[%emt 0:00:29]} Bxd4 {[%emt 0:01:26]} 34. exd4 {[%emt 0:00:03]} Qxd4 {[%emt 0:00:37]} 35. Qxa7+ {[%emt 0:00:04]} Rd7 {[%emt 0:00:16]} 36. Qb8 {[%emt 0:01:17]} g4 {[%emt 0:01:30]} 37. Bg2 {[%emt 0:00:49]} Nd1 {[%emt 0:01:18]} 38. h4 {[%emt 0:00:27]} gxh3 {[%emt 0:01:25]} 39. Bf3 {[%emt 0:00:31]} Nxf2+ {[%emt 0:00:09]} 40. Kh2 {[%emt 0:00:01]} Ng4+ {[%emt 0:00:35]} 41. Kxh3 {[%emt 0:00:02]} Qd2 {[%emt 0:02:01]} 42. Bxg4 {[%emt 0:01:14]} fxg4+ {[%emt 0:00:07]} 43. Kxg4 {[%emt 0:00:01]} Qe2+ {[%emt 0:01:08] Ra1} 0-1

[Event "17th Delhi GM Open 2019"]
[Site "Delhi"]
[Date "2019.01.09"]
[Round "1"]
[White "Shubham Shukla"]
[Black "Mosadeghpour, Masoud"]
[Result "0-1"]
[ECO "A48"]
[WhiteElo "1933"]
[BlackElo "2517"]
[Annotator "RC"]
[PlyCount "53"]
[EventDate "2019.01.09"]
[EventType "swiss"]
[EventCountry "IND"]
[SourceTitle "playchess.com"]
[Source "ChessBase"]
[SourceQuality "1"]
[TimeControl "5400+30"]

1. d4 Nf6 2. Nf3 g6 3. Nc3 d5 4. Bf4 Bg7 5. e3 O-O 6. h3 c5 7. Be2 Nc6 8. O-O Ne4 9. Nxe4 dxe4 10. Nd2 cxd4 11. exd4 Nxd4 12. c3 Nxe2+ 13. Qxe2 e5 14. Be3 Qd3 15. Qxd3 exd3 16. f4 Re8 17. fxe5 Bxe5 18. Rae1 Be6 19. a3 Bd5 20. Kf2 Re6 21. Nf3 Rae8 22. Bd2 Bxf3 23. Kxf3 Rf6+ 24. Kg4 h5+ 25. Kh4 Rb6 26. b4 Rbe6 27. g4 0-1

[Event "17th Delhi GM Open 2019"]
[Site "Delhi"]
[Date "2019.01.09"]
[Round "1"]
[White "Joshi, Abhijeet"]
[Black "Rahman, Ziaur"]
[Result "0-1"]
[ECO "B88"]
[WhiteElo "1913"]
[BlackElo "2470"]
[Annotator "ChessBase"]
[PlyCount "92"]
[EventDate "2019.01.09"]
[EventType "swiss"]
[EventCountry "IND"]
[SourceTitle "playchess.com"]
[Source "ChessBase"]
[SourceQuality "1"]
[TimeControl "5400+30"]

1. e4 {[%emt 0:00:00]} c5 {[%emt 0:01:14]} 2. Nf3 {[%emt 0:00:00]} d6 {[%emt 0:00:05]} 3. d4 {[%emt 0:00:00]} cxd4 {[%emt 0:00:05]} 4. Nxd4 {[%emt 0:00:00]} Nf6 {[%emt 0:00:06]} 5. Nc3 {[%emt 0:00:03]} Nc6 {[%emt 0:00:14]} 6. Bc4 {[%emt 0:00:46]} e6 {[%emt 0:00:08]} 7. Bb3 {[%emt 0:00:28]} a6 {[%emt 0:01:36]} 8. O-O {[%emt 0:00:33]} Qc7 {[%emt 0:02:19]} 9. Kh1 {[%emt 0:04:22]} Na5 {[%emt 0:10:03]} 10. f4 {[%emt 0:02:23]} Bd7 {[%emt 0:01:23]} 11. f5 {[%emt 0:00:42]} e5 {[%emt 0:00:37]} 12. Nde2 {[%emt 0:00:25]} Nxb3 {[%emt 0:05:08]} 13. axb3 {[%emt 0:00:13]} Bc6 {[%emt 0:01:10]} 14. Qd3 {[%emt 0:10:09]} Be7 {[%emt 0:01:26]} 15. Be3 {[%emt 0:10:16]} b5 {[%emt 0:03:53]} 16. Nd5 {[%emt 0:05:21]} Bxd5 {[%emt 0:02:32]} 17. exd5 {[%emt 0:00:11]} O-O 18. Rfd1 {[%emt 0:05:47]} Rfc8 {[%emt 0:05:57]} 19. c3 {[%emt 0:00:57]} Qd7 {[%emt 0:03:19]} 20. Ng3 {[%emt 0:11:08]} a5 {[%emt 0:01:43]} 21. Bg5 {[%emt 0:04:05]} a4 {[%emt 0:08:04]} 22. Bxf6 {[%emt 0:02:37]} Bxf6 {[%emt 0:00:17]} 23. b4 {[%emt 0:01:43]} Rc4 {[%emt 0:09:45]} 24. Ne4 {[%emt 0:02:54]} Rac8 {[%emt 0:00:26]} 25. Rf1 {[%emt 0:01:36]} Rxe4 {[%emt 0:06:51]} 26. Qxe4 {[%emt 0:02:58]} Rc4 {[%emt 0:00:04]} 27. Qe2 {[%emt 0:00:00]} Rc8 {[%emt 0:00:56]} 28. Qe4 {[%emt 0:01:00]} Rc4 {[%emt 0:00:04]} 29. Qe2 {[%emt 0:00:20]} Qc8 {[%emt 0:01:05]} 30. h3 {[%emt 0:06:02]} h6 {[%emt 0:00:20]} 31. Rf3 {[%emt 0:03:35]} Bg5 {[%emt 0:01:04]} 32. Kh2 {[%emt 0:01:30]} h5 {[%emt 0:06:37]} 33. Qd1 {[%emt 0:08:40]} h4 {[%emt 0:02:16]} 34. Qe2 {[%emt 0:06:21]} Bf4+ {[%emt 0:05:44]} 35. Rxf4 {[%emt 0:00:47]} Rxf4 {[%emt 0:01:57]} 36. Qxb5 {[%emt 0:02:59]} Qxf5 {[%emt 0:00:31]} 37. Qb8+ {[%emt 0:04:40]} Kh7 {[%emt 0:01:48]} 38. Qxd6 {[%emt 0:00:07]} Rf2 {[%emt 0:01:00]} 39. Qa6 {[%emt 0:01:54]} e4 {[%emt 0:03:14]} 40. Kg1 {[%emt 0:00:44]} Rd2 {[%emt 0:00:49]} 41. Rf1 {[%emt 0:00:18]} Qxd5 {[%emt 0:01:09]} 42. Qa5 {[%emt 0:00:44]} Qxa5 {[%emt 0:03:22]} 43. bxa5 {[%emt 0:00:02]} Rxb2 {[%emt 0:00:24]} 44. Ra1 {[%emt 0:00:28]} e3 {[%emt 0:00:26]} 45. Rxa4 {[%emt 0:00:41]} Rb1+ {[%emt 0:00:15]} 46. Kh2 {[%emt 0:00:04]} e2 {[%emt 0:00:07]} 0-1

[Event "17th Delhi GM Open 2019"]
[Site "Delhi"]
[Date "2019.01.10"]
[Round "2"]
[White "Stupak, Kirill"]
[Black "Arpita, Mukherjee"]
[Result "1-0"]
[ECO "A45"]
[WhiteElo "2542"]
[BlackElo "2132"]
[Annotator "ChessBase"]
[PlyCount "69"]
[EventDate "2019.01.09"]
[EventType "swiss"]
[EventCountry "IND"]
[SourceTitle "playchess.com"]
[Source "ChessBase"]
[SourceQuality "1"]
[TimeControl "5400+30"]

1. d4 {[%emt 0:03:05]} Nf6 {[%emt 0:00:00]} 2. g3 {[%emt 0:00:05]} g6 {[%emt 0:00:18]} 3. Bg2 {[%emt 0:00:02]} Bg7 {[%emt 0:00:13]} 4. e4 {[%emt 0:00:01]} d6 {[%emt 0:00:07]} 5. Nc3 {[%emt 0:00:02]} O-O {[%emt 0:01:11]} 6. Nge2 {[%emt 0:00:03]} e5 {[%emt 0:03:20]} 7. O-O {[%emt 0:03:21]} exd4 {[%emt 0:01:46]} 8. Nxd4 {[%emt 0:00:06]} Bg4 {[%emt 0:00:08]} 9. f3 {[%emt 0:08:36]} Bd7 {[%emt 0:00:39]} 10. Be3 {[%emt 0:02:23]} Nc6 {[%emt 0:00:55]} 11. Nde2 {[%emt 0:00:12]} Qc8 {[%emt 0:01:54]} 12. Nf4 {[%emt 0:04:42]} Kh8 {[%emt 0:09:36]} 13. Qd2 {[%emt 0:02:39]} Ne5 {[%emt 0:04:05]} 14. b3 {[%emt 0:00:10]} Re8 {[%emt 0:02:07]} 15. a4 {[%emt 0:02:38]} Ng8 {[%emt 0:13:53]} 16. g4 {[%emt 0:04:35]} h6 {[%emt 0:08:25]} 17. h3 {[%emt 0:01:13]} Kh7 {[%emt 0:06:37]} 18. Rad1 {[%emt 0:01:20]} Qd8 {[%emt 0:09:29]} 19. Nfe2 {[%emt 0:02:10]} Bc6 {[%emt 0:07:03]} 20. f4 {[%emt 0:02:32]} Nd7 {[%emt 0:00:08]} 21. Nd4 {[%emt 0:00:09]} Qe7 {[%emt 0:01:25]} 22. Bf2 {[%emt 0:05:29]} a6 {[%emt 0:04:32]} 23. Rfe1 {[%emt 0:01:56]} Rad8 {[%emt 0:00:56]} 24. Na2 {[%emt 0:01:04]} Nb8 {[%emt 0:01:57]} 25. Nb4 {[%emt 0:01:45]} Qd7 {[%emt 0:02:45]} 26. Bh4 {[%emt 0:07:30]} Rc8 {[%emt 0:03:39]} 27. Ndxc6 {[%emt 0:03:38]} bxc6 {[%emt 0:01:10]} 28. e5 {[%emt 0:00:18]} Bf8 {[%emt 0:02:00]} 29. Qf2 {[%emt 0:04:02]} a5 {[%emt 0:00:49]} 30. Nd3 {[%emt 0:00:11]} Na6 {[%emt 0:01:11]} 31. f5 {[%emt 0:01:18]} g5 {[%emt 0:00:38]} 32. Bg3 {[%emt 0:00:05]} f6 {[%emt 0:01:02]} 33. e6 {[%emt 0:00:14]} Qg7 {[%emt 0:00:23]} 34. Bxc6 {[%emt 0:00:02]} Red8 {[%emt 0:00:58]} 35. Bb7 {[%emt 0:00:37]} 1-0

[Event "17th Delhi GM Open 2019"]
[Site "Delhi"]
[Date "2019.01.10"]
[Round "2"]
[White "Masango, Spencer"]
[Black "Deepan Chakkravarthy J."]
[Result "0-1"]
[ECO "A04"]
[WhiteElo "2168"]
[BlackElo "2543"]
[Annotator "ChessBase"]
[PlyCount "56"]
[EventDate "2019.01.09"]
[EventType "swiss"]
[EventCountry "IND"]
[SourceTitle "playchess.com"]
[Source "ChessBase"]
[SourceQuality "1"]
[TimeControl "5400+30"]

1. Nf3 {[%emt 0:00:00]} b6 {[%emt 0:00:32]} 2. g3 {[%emt 0:00:17]} Bb7 {[%emt 0:00:09]} 3. Bg2 {[%emt 0:00:29]} g6 {[%emt 0:04:59]} 4. O-O {[%emt 0:00:14]} Bg7 {[%emt 0:00:02]} 5. c4 {[%emt 0:00:58]} c5 {[%emt 0:02:07]} 6. Nc3 {[%emt 0:00:47]} Nc6 {[%emt 0:00:58]} 7. a3 {[%emt 0:01:56]} d6 {[%emt 0:04:01]} 8. b4 {[%emt 0:04:36]} e6 {[%emt 0:00:12]} 9. Bb2 {[%emt 0:05:09]} Nge7 {[%emt 0:00:45]} 10. e3 {[%emt 0:03:40]} O-O {[%emt 0:01:08]} 11. bxc5 {[%emt 0:11:05]} dxc5 {[%emt 0:00:14]} 12. Qe2 {[%emt 0:00:07]} h6 {[%emt 0:06:43]} 13. d3 {[%emt 0:03:38]} Qd7 {[%emt 0:01:37]} 14. Ne4 {[%emt 0:06:45]} f5 {[%emt 0:07:08]} 15. Nc3 {[%emt 0:00:47]} e5 {[%emt 0:03:31]} 16. Nd5 {[%emt 0:09:18]} Nxd5 {[%emt 0:00:45]} 17. cxd5 {[%emt 0:00:44]} Qxd5 {[%emt 0:00:05]} 18. d4 {[%emt 0:09:04]} cxd4 {[%emt 0:15:01]} 19. exd4 {[%emt 0:01:36]} e4 {[%emt 0:01:06]} 20. Nh4 {[%emt 0:05:12]} Kh7 {[%emt 0:00:27]} 21. g4 {[%emt 0:01:49]} Rae8 {[%emt 0:04:27]} 22. gxf5 {[%emt 0:05:53]} gxf5 23. Qh5 {[%emt 0:03:25]} Qf7 {[%emt 0:01:06]} 24. Qxf7 {[%emt 0:01:27]} Rxf7 {[%emt 0:00:17]} 25. d5 {[%emt 0:01:27]} Bxb2 {[%emt 0:00:36]} 26. dxc6 {[%emt 0:00:23]} Bxc6 {[%emt 0:00:22]} 27. Ra2 {[%emt 0:01:00]} Bd4 {[%emt 0:00:15]} 28. Rd1 {[%emt 0:00:54]} Bc5 {[%emt 0:00:06]} 0-1

[Event "17th Delhi GM Open 2019"]
[Site "Delhi"]
[Date "2019.01.10"]
[Round "3"]
[White "Manik, Mikulas"]
[Black "Chilukuri Sai Varshith"]
[Result "1-0"]
[ECO "B31"]
[WhiteElo "2413"]
[BlackElo "1738"]
[Annotator "NA"]
[PlyCount "83"]
[EventDate "2019.01.09"]
[EventType "swiss"]
[EventCountry "IND"]
[SourceTitle "playchess.com"]
[Source "ChessBase"]
[SourceQuality "1"]
[TimeControl "5400+30"]

1. e4 {[%emt 0:00:00]} c5 {[%emt 0:00:22]} 2. Nf3 {[%emt 0:00:00]} Nc6 {[%emt 0:00:43]} 3. Bb5 {[%emt 0:00:00]} g6 {[%emt 0:00:45]} 4. O-O {[%emt 0:00:00]} Bg7 {[%emt 0:01:12]} 5. Re1 {[%emt 0:00:00]} a6 {[%emt 0:00:45]} 6. Bxc6 {[%emt 0:00:33]} dxc6 {[%emt 0:00:13]} 7. d3 {[%emt 0:01:03]} e5 {[%emt 0:01:43]} 8. Be3 {[%emt 0:03:59]} b6 {[%emt 0:00:31]} 9. Nbd2 {[%emt 0:00:34]} Ne7 {[%emt 0:01:47]} 10. a3 {[%emt 0:05:24]} Qc7 {[%emt 0:05:15]} 11. b4 {[%emt 0:01:20]} cxb4 {[%emt 0:02:46]} 12. axb4 {[%emt 0:00:03]} O-O {[%emt 0:00:46]} 13. Nc4 {[%emt 0:00:19]} Rb8 {[%emt 0:01:43]} 14. Ra3 {[%emt 0:11:33]} Rd8 {[%emt 0:08:19]} 15. Qa1 {[%emt 0:06:16]} f6 {[%emt 0:04:22]} 16. d4 {[%emt 0:04:01]} Bg4 {[%emt 0:16:13]} 17. dxe5 {[%emt 0:03:21]} fxe5 {[%emt 0:00:10]} 18. Ncxe5 {[%emt 0:01:17]} Nd5 {[%emt 0:07:48]} 19. exd5 {[%emt 0:23:53]} Bxf3 {[%emt 0:00:06]} 20. Bf4 {[%emt 0:02:53]} Bxd5 {[%emt 0:08:24]} 21. Nxg6 {[%emt 0:00:37]} Qxf4 {[%emt 0:05:01]} 22. Qxg7+ {[%emt 0:05:38]} Kxg7 {[%emt 0:00:40]} 23. Nxf4 {[%emt 0:00:02]} Re8 {[%emt 0:02:39]} 24. Rea1 {[%emt 0:02:40]} Re4 {[%emt 0:06:39]} 25. Nxd5 {[%emt 0:00:30]} cxd5 {[%emt 0:00:16]} 26. Rxa6 {[%emt 0:00:20]} Rxb4 {[%emt 0:00:05]} 27. Ra7+ {[%emt 0:00:19]} Kg6 {[%emt 0:00:32]} 28. Rd7 {[%emt 0:00:42]} Ra8 {[%emt 0:07:11]} 29. Re1 {[%emt 0:01:40]} d4 {[%emt 0:03:32]} 30. h3 {[%emt 0:01:54]} Rc8 {[%emt 0:01:07]} 31. g4 {[%emt 0:01:46]} Rc6 {[%emt 0:05:02]} 32. Re4 {[%emt 0:01:27]} b5 {[%emt 0:03:25]} 33. Rexd4 {[%emt 0:05:57]} Rxd4 {[%emt 0:00:07]} 34. Rxd4 {[%emt 0:00:12]} Rxc2 {[%emt 0:00:04]} 35. Rd6+ {[%emt 0:00:04]} Kg7 {[%emt 0:00:09]} 36. Rb6 {[%emt 0:00:05]} Rb2 {[%emt 0:00:08]} 37. Kg2 {[%emt 0:00:07]} h5 {[%emt 0:00:56]} 38. Kg3 {[%emt 0:00:34]} Rb3+ {[%emt 0:00:42]} 39. f3 {[%emt 0:00:15]} b4 {[%emt 0:00:21]} 40. g5 {[%emt 0:00:51]} Kh7 {[%emt 0:00:53]} 41. h4 {[%emt 0:00:20]} Rb1 {[%emt 0:00:24]} 42. Kf4 {[%emt 0:01:19]} 1-0